fUSD/lending_fUSD_20240516
["ID","MTS","AMOUNT","RATE_DAILY","PERIOD"]
[327142801,1715847090915,-175.50655605,0.000117,2]
[327142802,1715847090924,-200.0,0.000117,4]
[327142803,1715847090933,-199.96781807,0.000117,2]
[327142804,1715847090943,-151.13388,0.00011701,2]
[327142805,1715847090953,-1000.0,0.00011701,2]
[327142806,1715847090962,-500.0,0.00011701,2]
[327142807,1715847090971,-500.0,0.00011701,2]
[327142808,1715847090980,-200.0,0.00011701,2]
[327142809,1715847090989,-1000.0,0.00011701,2]
[327142810,1715847090999,-500.0,0.00011701,2]
[327142811,1715847091008,-19584.64571004,0.00011763,2]
[327142812,1715847091303,-500.0,0.00011764,2]
[327142813,1715847091459,-1290.11,0.00011764,2]
[327142814,1715847091477,-515.79,0.00011764,2]
[327142815,1715847091492,-500.0,0.00011764,2]
[327142816,1715847091502,-500.0,0.00011764,2]
[327142817,1715847091512,-500.0,0.00011764,2]
[327142818,1715847091521,-500.0,0.00011764,2]
[327142819,1715847091530,-500.0,0.00011764,2]
[327142820,1715847091540,-1190.31,0.00011764,2]
[327142821,1715847091549,-500.0,0.00011764,2]
[327142822,1715847091559,-500.0,0.00011764,2]
[327142823,1715847091567,-1824.4,0.00011764,2]
[327142824,1715847091577,-500.0,0.00011764,2]
[327142825,1715847091587,-500.0,0.00011764,2]
[327142826,1715847091596,-168.37955163,0.00011765,2]
[327142827,1715847091605,-5350.82794671,0.00011765,2]
[327142828,1715847091869,-751.72,0.00010998,2]
[327142829,1715847091878,-468.48775906,0.00011765,2]
[327142830,1715847091889,-47.32765529,0.00011765,2]
[327142831,1715847091899,-359.14151075,0.00011766,2]
[327142832,1715847091911,-428.61941707,0.00011766,2]
[327142833,1715847091924,-315.19030927,0.00011766,2]
[327142834,1715847091938,-897.04876291,0.00011766,2]
[327142835,1715847091948,-73.36304743,0.00011766,2]
[327142836,1715847091960,-1602.93844467,0.00011766,2]
[327142837,1715847092032,-500.0,0.00010958,2]
[327142838,1715847092043,-1323.6985079,0.00011766,2]
[327142839,1715847092053,-8.58390792,0.00011773,2]
[327142840,1715847092064,-1425.94447234,0.00011773,2]
[327142843,1715847093074,-500.0,0.00010958,2]
[327142844,1715847093083,-500.0,0.00010958,2]
[327142845,1715847093093,-500.0,0.00010958,2]
[327142846,1715847093102,-500.0,0.00010958,2]
[327142847,1715847093111,-54.9561253,0.00010958,2]
[327142848,1715847093122,-445.0438747,0.00010958,2]
[327142849,1715847093131,-500.0,0.00010958,2]
[327142850,1715847093140,-396.3147323,0.00010958,2]
[327142851,1715847093160,-103.6852677,0.00010958,2]
[327142852,1715847093169,-500.0,0.00010958,2]
[327142853,1715847093178,-500.0,0.00010958,2]
[327142854,1715847093188,-505.33333159,0.00010958,2]
[327142855,1715847093197,-420.96,0.00010958,2]
[327142856,1715847093207,-500.0,0.00010958,2]
[327142857,1715847093216,-436.21172925,0.00010958,2]
[327142858,1715847093228,-71.05432033,0.00010958,2]
[327142859,1715847093241,-500.0,0.00010958,2]
[327142860,1715847093253,-218.350712,0.00010959,2]
[327142861,1715847093264,-218.350712,0.00010959,2]
[327142862,1715847093274,-751.72,0.00010999,2]
[327142863,1715847093285,-751.72,0.00010999,2]
[327142864,1715847093294,-751.72,0.00010999,2]
[327142865,1715847093305,-751.72,0.00010999,2]
[327142866,1715847093320,-84.80626584,0.00010999,2]
[327142867,1715847093333,-348.64959659,0.00010999,2]
[327142868,1715847093352,-500.0,0.00010958,2]
[327142869,1715847093363,-318.26413757,0.00010999,2]
[327142870,1715847093373,-218.350712,0.00010999,2]
[327142871,1715847093384,-1936.28043124,0.00011773,2]
[327142872,1715847093394,-1045.0,0.00011781,2]
[327142873,1715847093407,-618.42,0.00011788,2]
[327142874,1715847093418,-28469.18471919,0.00011789,2]
[327142875,1715847093429,-451.9375,0.00011789,2]
[327142876,1715847093440,-284.51680329,0.00011789,2]
[327142877,1715847093450,-403.27935597,0.00011789,2]
[327142878,1715847093484,-698.51375893,0.00011789,2]
[327142879,1715847093513,-31971.66253132,0.00011789,2]
[327142880,1715847093522,-1316.1758485,0.00011789,2]
[327142881,1715847093532,-187.00835459,0.0001179,2]
[327142882,1715847093541,-4272.63704827,0.0001179,2]
[327142883,1715847093550,-204.30203415,0.0001179,2]
[327142884,1715847093559,-265.18505592,0.0001179,2]
[327142885,1715847093569,-155.10188486,0.0001179,2]
[327142886,1715847093578,-269.35484874,0.0001179,2]
[327142887,1715847093587,-200.69751163,0.0001179,2]
[327142888,1715847093597,-5557.31186524,0.0001179,2]
[327142889,1715847093606,-324.50794331,0.0001179,2]
[327142890,1715847093615,-3057.79124914,0.0001179,2]
[327142891,1715847093625,-298.09195788,0.0001179,2]
[327142892,1715847093634,-1271.28995696,0.0001179,2]
[327142893,1715847093643,-155.44054407,0.0001179,2]
[327142894,1715847093652,-437.67326045,0.0001179,2]
[327142895,1715847093661,-1166.93003225,0.0001179,2]
[327142896,1715847093671,-818.87738312,0.00011792,2]
[327142897,1715847093680,-157.97297,0.00011792,2]
[327142898,1715847093690,-155.77921591,0.00011792,2]
[327142899,1715847093699,-52842.4461586,0.00011792,2]
[327142900,1715847093709,-162.146908,0.00011792,2]
[327142901,1715847093719,-1233.0116218,0.00011792,2]
[327142902,1715847093728,-3157.8200162,0.00011792,2]
[327142903,1715847093737,-207.2418772,0.00011797,2]
[327142904,1715847093748,-157.051616,0.00011798,2]
[327142905,1715847093757,-157.051616,0.00011798,2]
[327142906,1715847093766,-157.051616,0.00011798,2]
[327142907,1715847093776,-157.051616,0.00011798,2]
[327142908,1715847093785,-618.42,0.00011798,2]
[327142909,1715847093794,-1037.98964315,0.00011799,3]
[327142910,1715847093803,-500.0,0.00011799,2]
[327142911,1715847093812,-500.0,0.00011799,2]
[327142912,1715847093821,-168.87,0.00011799,2]
[327142913,1715847093830,-574.3,0.00011799,2]
[327142914,1715847093840,-500.0,0.00011799,2]
[327142915,1715847093849,-500.0,0.00011799,2]
[327142916,1715847093858,-500.0,0.00011799,2]
[327142917,1715847093867,-483.97,0.00011799,2]
[327142918,1715847093877,-618.42,0.00011799,2]
[327142919,1715847093886,-618.42,0.00011799,2]
[327142920,1715847093896,-618.42,0.00011799,2]
[327142921,1715847093905,-618.42,0.00011799,2]
[327142922,1715847093915,-618.42,0.00011799,2]
[327142923,1715847093924,-618.42,0.00011799,2]
[327142924,1715847093933,-618.59496792,0.00011799,2]
[327142925,1715847093943,-500.0,0.00011799,2]
[327142926,1715847093952,-500.0,0.00011799,2]
[327142927,1715847093961,-500.0,0.00011799,2]
[327142928,1715847093970,-500.0,0.00011799,2]
[327142929,1715847093980,-500.0,0.00011799,2]
[327142930,1715847093990,-609.61849942,0.00011799,2]
[327142931,1715847094000,-500.0,0.00011799,2]
[327142932,1715847094009,-500.0,0.00011799,2]
[327142933,1715847094018,-500.0,0.00011799,2]
[327142934,1715847094027,-500.0,0.00011799,2]
[327142935,1715847094035,-500.0,0.00011799,2]
[327142936,1715847094045,-500.0,0.00011799,2]
[327142937,1715847094054,-606.43,0.00011799,2]
[327142938,1715847094063,-500.0,0.00011799,2]
[327142939,1715847094072,-500.0,0.00011799,2]
[327142940,1715847094082,-500.0,0.00011799,2]
[327142941,1715847094091,-500.0,0.00011799,2]
[327142942,1715847094100,-500.0,0.00011799,2]
[327142943,1715847094109,-500.0,0.00011799,2]
[327142944,1715847094118,-500.0,0.00011799,2]
[327142945,1715847094128,-500.0,0.00011799,2]
[327142946,1715847094138,-500.0,0.00011799,2]
[327142947,1715847094147,-500.0,0.00011799,2]
[327142948,1715847094157,-500.0,0.00011799,2]
[327142949,1715847094166,-500.0,0.00011799,2]
[327142950,1715847094175,-507.98776525,0.00011799,2]
[327142951,1715847094184,-1190.31,0.00011799,2]
[327142952,1715847094194,-1190.31,0.00011799,2]
[327142953,1715847094204,-1190.31,0.00011799,2]
[327142954,1715847094213,-1190.31,0.00011799,2]
[327142955,1715847094222,-1190.31,0.00011799,2]
[327142956,1715847094231,-1190.31,0.00011799,2]
[327142957,1715847094240,-1190.31,0.00011799,2]
[327142958,1715847094254,-1190.31,0.00011799,2]
[327142959,1715847094263,-1190.31,0.00011799,2]
[327142960,1715847094272,-1190.31,0.00011799,2]
[327142961,1715847094282,-1190.31,0.00011799,2]
[327142962,1715847094292,-1190.31,0.00011799,2]
[327142963,1715847094301,-1190.31,0.00011799,2]
[327142964,1715847094312,-1190.31,0.00011799,2]
[327142965,1715847094321,-1190.31,0.00011799,2]
[327142966,1715847094334,-1190.31,0.00011799,2]
[327142967,1715847094343,-1190.31,0.00011799,2]
[327142968,1715847094352,-1190.31,0.00011799,2]
[327142969,1715847094362,-1190.31,0.00011799,2]
[327142970,1715847094372,-1190.33935139,0.00011799,2]
[327142971,1715847094382,-500.0,0.00011799,2]
[327142972,1715847094391,-500.0,0.00011799,2]
[327142973,1715847094401,-500.0,0.00011799,2]
[327142974,1715847094414,-357.6549125,0.00011799,2]
[327142975,1715847094423,-500.0,0.00011799,2]
[327142976,1715847094433,-500.0,0.00011799,2]
[327142977,1715847094442,-500.0,0.00011799,2]
[327142978,1715847094453,-500.0,0.00011799,2]
[327142979,1715847094463,-500.0,0.00011799,2]
[327142980,1715847094473,-500.0,0.00011799,2]
[327142981,1715847094482,-402.33063961,0.00011799,2]
[327142982,1715847094491,-1824.4,0.00011799,2]
[327142983,1715847094503,-1824.4,0.00011799,2]
[327142984,1715847094513,-1824.4,0.00011799,2]
[327142985,1715847094522,-1824.4,0.00011799,2]
[327142986,1715847094532,-1824.4,0.00011799,2]
[327142987,1715847094542,-1824.4,0.00011799,2]
[327142988,1715847094551,-1824.4,0.00011799,2]
[327142989,1715847094561,-1824.4,0.00011799,2]
[327142990,1715847094571,-1824.4,0.00011799,2]
[327142991,1715847094581,-1824.4,0.00011799,2]
[327142992,1715847094591,-1824.4,0.00011799,2]
[327142993,1715847094600,-1824.4,0.00011799,2]
[327142994,1715847094610,-1824.4,0.00011799,2]
[327142995,1715847094789,-1824.4,0.00011799,2]
[327142996,1715847094811,-1824.4,0.00011799,2]
[327142997,1715847094821,-1824.4,0.00011799,2]
[327142998,1715847094830,-1824.4,0.00011799,2]
[327142999,1715847094840,-1824.4,0.00011799,2]
[327143000,1715847094849,-1824.4,0.00011799,2]
[327143001,1715847094858,-1824.40394888,0.00011799,2]
[327143002,1715847094867,-500.0,0.00011799,2]
[327143003,1715847094877,-500.0,0.00011799,2]
[327143004,1715847094886,-500.0,0.00011799,2]
[327143005,1715847094895,-330.4110755,0.00011799,2]
[327143006,1715847094905,-500.0,0.00011799,2]
[327143007,1715847094915,-500.0,0.00011799,2]
[327143008,1715847094925,-420.80738682,0.00011799,2]
[327143009,1715847094936,-150.0,0.00011799,2]
[327143010,1715847094947,-150.0,0.00011799,2]
[327143011,1715847094958,-150.0,0.00011799,2]
[327143012,1715847094968,-150.0,0.00011799,2]
[327143013,1715847094978,-150.0,0.00011799,2]
[327143014,1715847094987,-34005.50704817,0.000118,2]
[327143015,1715847095001,-1450.83593357,0.000118,2]
[327143016,1715847095195,-500.0,0.00010958,2]
[327143017,1715847095204,-165.19025289,0.00010958,2]
[327143018,1715847095214,-500.0,0.00010958,2]
[327143019,1715847095224,-500.0,0.00010958,2]
[327143020,1715847095233,-500.0,0.00010958,2]
[327143021,1715847095242,-500.0,0.00010958,2]
[327143022,1715847095253,-500.0,0.00010958,2]
[327143023,1715847095263,-500.0,0.00010958,2]
[327143024,1715847095272,-751.72,0.00010999,2]
[327143025,1715847095281,-751.79,0.00010999,2]
[327143026,1715847095290,-218.350712,0.00011,2]
[327143027,1715847095300,-218.350712,0.00011199,2]
[327143028,1715847095310,-218.350712,0.00011199,2]
[327143029,1715847095324,-218.350712,0.00011792,2]
[327143030,1715847095333,-4355.51729167,0.000118,2]
[327143031,1715847095344,-1219.31824563,0.000118,2]
[327143032,1715847095356,-10954.59809163,0.000118,2]
[327143033,1715847095367,-882.56321139,0.000118,2]
[327143034,1715847095388,-254942.03078806,0.000118,2]
[327143035,1715847095443,-500.0,0.00010958,2]
[327143036,1715847095453,-567.81353758,0.000118,2]
[327143037,1715847095464,-455.24917089,0.000118,2]
[327143038,1715847095475,-1126.43968259,0.000118,2]
[327143039,1715847095524,-419.94027421,0.00010958,2]
[327143040,1715847095834,-80.05972579,0.00010958,2]
[327143041,1715847095843,-500.0,0.00010958,2]
[327143042,1715847095852,-500.0,0.00010958,2]
[327143043,1715847095862,-500.0,0.00010958,2]
[327143044,1715847095871,-500.0,0.00010958,2]
[327143045,1715847095880,-500.0,0.00010958,2]
[327143046,1715847095890,-500.0,0.00010958,2]
[327143047,1715847095899,-500.0,0.00010958,2]
[327143048,1715847095908,-500.0,0.00010958,2]
[327143049,1715847095917,-500.0,0.00010958,2]
[327143050,1715847095926,-218.350712,0.00010959,2]
[327143051,1715847095935,-218.350712,0.00010959,2]
[327143052,1715847095944,-218.350712,0.00010999,2]
[327143053,1715847095953,-218.350712,0.00011,2]
[327143054,1715847095962,-218.350712,0.00011199,2]
[327143055,1715847095971,-218.350712,0.00011199,2]
[327143056,1715847095980,-184213.16949661,0.000118,2]
[327143057,1715847095991,-959.66047797,0.000118,2]
[327143058,1715847096620,-279.584052,0.000118,2]
[327143059,1715847096634,-360.08234564,0.000118,2]
[327143060,1715847096646,-3431.15037639,0.000118,2]
[327143061,1715847096658,-727.95,0.000118,2]
[327143062,1715847096690,-500.0,0.00010958,2]
[327143063,1715847096701,-218.350712,0.00011792,2]
[327143064,1715847096712,-66.53929052,0.000118,2]
[327143065,1715847096725,-1066.66801028,0.000118,2]
[327143066,1715847096737,-1795.36741921,0.000118,2]
[327143067,1715847096752,-62103.48548957,0.000118,2]
[327143077,1715847467115,297.56,8.219e-05,2]
[327143079,1715847576286,945.20094195,8.219e-05,2]
[327143080,1715847594200,945.20094195,8.219e-05,2]
[327143082,1715847610202,945.20094195,8.219e-05,2]
[327143083,1715847630197,945.20094195,8.219e-05,2]
[327143084,1715847650207,945.20094195,8.219e-05,2]
[327143088,1715847672211,945.20094195,8.219e-05,2]
[327143089,1715847690224,945.20094195,8.219e-05,2]
[327143090,1715847712242,945.20094195,8.219e-05,2]
[327143091,1715847728220,945.20094195,8.219e-05,2]
[327143093,1715847744228,658.53132245,8.219e-05,2]
[327143109,1715847970917,282.68,8.219e-05,2]
[327143114,1715848154964,1800.46,0.00019,30]
[327143116,1715848220829,70000.0,0.0001899,30]
[327143131,1715848232296,-155.0,9.134e-05,2]
[327143132,1715848232306,-165.15,9.135e-05,2]
[327143133,1715848232315,-23900.0,9.143e-05,2]
[327143134,1715848232326,-250.0,9.157e-05,2]
[327143136,1715848232336,-908.76,9.157e-05,2]
[327143138,1715848232345,-887.1,9.245e-05,2]
[327143140,1715848232354,-290.65,9.254e-05,2]
[327143142,1715848232363,-159.4,9.298e-05,2]
[327143144,1715848232373,-939.10970596,9.328e-05,2]
[327143146,1715848232382,-458.82509065,9.33e-05,2]
[327143148,1715848232394,-142.14490935,9.33e-05,2]
[327143149,1715848232403,-2688.44,9.384e-05,2]
[327143150,1715848232412,-770.55190522,9.397e-05,2]
[327143151,1715848232590,-438.97877864,9.397e-05,2]
[327143152,1715848232602,-109.22931614,9.397e-05,2]
[327143153,1715848232611,-181.05,9.45e-05,2]
[327143154,1715848232620,-250.0,9.505e-05,2]
[327143155,1715848232630,-667.36394363,9.603e-05,2]
[327143156,1715848232641,-143.35605637,9.603e-05,2]
[327143157,1715848232650,-158.08899744,9.662e-05,2]
[327143175,1715848237613,-30.07100256,9.662e-05,2]
[327143177,1715848237622,-413.00113425,9.788e-05,2]
[327143179,1715848237633,-922.91886575,9.788e-05,2]
[327143181,1715848237643,-163.47,9.801e-05,2]
[327143182,1715848237652,-155.0,9.86e-05,2]
[327143183,1715848237661,-175.78,9.891e-05,2]
[327143184,1715848237671,-150.99,9.992e-05,2]
[327143185,1715848237683,-204.49444067,0.0001,2]
[327143186,1715848237693,-1400.21,0.0001,2]
[327143187,1715848237702,-1653.64,0.00010243,2]
[327143188,1715848237711,-1000.0,0.00010244,2]
[327143189,1715848237721,-4609.3293,0.00010245,2]
[327143190,1715848237731,-499.99,0.00010245,2]
[327143191,1715848237739,-34377.59831423,0.00010271,2]
[327143192,1715848237749,-887.1,0.00010401,2]
[327143193,1715848237760,-282.68,0.00010441,2]
[327143194,1715848237770,-1195.13042286,0.00010448,2]
[327143195,1715848237779,-881.9208,0.00010658,2]
[327143196,1715848237788,-151.24,0.00010712,2]
[327143197,1715848237798,-2925.1475,0.00010758,2]
[327143198,1715848237812,-10267.1314,0.00010758,2]
[327143199,1715848237821,-413.1793,0.00010758,2]
[327143200,1715848237830,-2126.0971,0.00010758,2]
[327143201,1715848237839,-8501.9805,0.00010758,2]
[327143202,1715848237848,-169.7655988,0.00010858,2]
[327143203,1715848237857,-125725.20645781,0.00010858,2]
[327143204,1715848237868,-15608.99885899,0.00010858,2]
[327143205,1715848237879,-3849.46393055,0.00010858,2]
[327143206,1715848237891,-16934.04267543,0.00010858,2]
[327143207,1715848237902,-58154.80535776,0.00010858,2]
[327143208,1715848237913,-24727.48271946,0.00010858,2]
[327143209,1715848237923,-500.0,0.00010858,2]
[327143210,1715848237932,-1000.0,0.00010858,2]
[327143211,1715848237941,-2564.52430228,0.00010956,2]
[327143212,1715848237953,-155.13360489,0.00010956,2]
[327143213,1715848237962,-158.03691831,0.00010956,2]
[327143215,1715848237971,-3085.70318809,0.00010957,2]
[327143217,1715848237980,-500.0,0.00010958,2]
[327143219,1715848237989,-500.0,0.00010958,2]
[327143220,1715848237999,-392.35663692,0.00010958,2]
[327143221,1715848238008,-502.0894662,0.00010958,2]
[327143222,1715848238018,-500.0,0.00010958,2]
[327143223,1715848238027,-506.73181498,0.00010958,2]
[327143224,1715848238036,-500.0,0.00010958,2]
[327143225,1715848238046,-503.29400268,0.00010958,2]
[327143226,1715848238055,-504.85816734,0.00010958,2]
[327143227,1715848238065,-503.16092953,0.00010958,2]
[327143228,1715848238075,-504.15133868,0.00010958,2]
[327143229,1715848238084,-504.45288103,0.00010958,2]
[327143230,1715848238093,-508.65492713,0.00010958,2]
[327143231,1715848238103,-502.28616032,0.00010958,2]
[327143232,1715848238112,-503.93975609,0.00010958,2]
[327143233,1715848238121,-9194.26810964,0.00010958,2]
[327143234,1715848238343,-500.0,0.00010958,2]
[327143235,1715848238353,-506.34414451,0.00010958,2]
[327143236,1715848238363,-500.0,0.00010958,2]
[327143237,1715848238372,-500.0,0.00010958,2]
[327143238,1715848238382,-500.0,0.00010958,2]
[327143239,1715848238392,-504.27768084,0.00010958,2]
[327143240,1715848238401,-509.60009422,0.00010958,2]
[327143241,1715848238411,-504.09895405,0.00010958,2]
[327143242,1715848238420,-512.2634621,0.00010958,2]
[327143243,1715848238430,-500.0,0.00010958,2]
[327143244,1715848238440,-494.62749046,0.00010958,2]
[327143245,1715848238449,-507.82587044,0.00010958,2]
[327143246,1715848238459,-503.92956534,0.00010958,2]
[327143247,1715848238468,-500.0,0.00010958,2]
[327143248,1715848238478,-436.04914141,0.00010958,2]
[327143249,1715848238488,-520.10057299,0.00010958,2]
[327143250,1715848238499,-533.70378946,0.00010958,2]
[327143251,1715848238508,-500.0,0.00010958,2]
[327143252,1715848238518,-515.01371162,0.00010958,2]
[327143253,1715848238527,-506.57821217,0.00010958,2]
[327143254,1715848238538,-507.08901179,0.00010958,2]
[327143255,1715848238547,-513.37247825,0.00010958,2]
[327143256,1715848238556,-183.76448323,0.00010958,2]
[327143257,1715848238566,-511.55210318,0.00010958,2]
[327143258,1715848238576,-507.22634193,0.00010958,2]
[327143259,1715848238587,-507.84783571,0.00010958,2]
[327143260,1715848238597,-506.65736727,0.00010958,2]
[327143261,1715848238608,-454.79806871,0.00010958,2]
[327143262,1715848238618,-500.18735588,0.00010958,2]
[327143263,1715848238628,-200.0,0.00010958,2]
[327143264,1715848238639,-200.60510361,0.00010958,2]
[327143265,1715848238649,-501.64079734,0.00010958,2]
[327143266,1715848238659,-506.12981014,0.00010958,2]
[327143267,1715848238670,-504.40760111,0.00010958,2]
[327143268,1715848238683,-503.54539532,0.00010958,2]
[327143269,1715848238693,-500.0,0.00010958,2]
[327143270,1715848238703,-512.04864337,0.00010958,2]
[327143271,1715848238713,-500.0,0.00010958,2]
[327143272,1715848238725,-507.09375836,0.00010958,2]
[327143273,1715848238736,-502.4233557,0.00010958,2]
[327143274,1715848238747,-385.81927565,0.00010958,2]
[327143275,1715848238763,-308.87931316,0.00010958,2]
[327143276,1715848238772,-515.3016368,0.00010958,2]
[327143277,1715848238781,-509.49898429,0.00010958,2]
[327143278,1715848238791,-500.0,0.00010958,2]
[327143279,1715848238804,-380.80431245,0.00010958,2]
[327143280,1715848238814,-500.0,0.00010958,2]
[327143281,1715848238823,-500.0,0.00010958,2]
[327143282,1715848238833,-505.8763195,0.00010958,2]
[327143283,1715848238843,-500.0,0.00010958,2]
[327143284,1715848238854,-500.0,0.00010958,2]
[327143285,1715848238866,-518.04064177,0.00010958,2]
[327143286,1715848238877,-298.91860786,0.00010958,2]
[327143287,1715848238887,-523.8757391,0.00010958,2]
[327143288,1715848238898,-500.0,0.00010958,2]
[327143289,1715848238908,-324.13226126,0.00010958,2]
[327143290,1715848238918,-168.84763888,0.00010958,2]
[327143291,1715848238928,-506.90432159,0.00010958,2]
[327143292,1715848238938,-477.15066524,0.00010958,2]
[327143293,1715848238948,-524.6621442,0.00010958,2]
[327143294,1715848238958,-355.13442189,0.00010958,2]
[327143295,1715848238968,-514.39289879,0.00010958,2]
[327143296,1715848238979,-500.0,0.00010958,2]
[327143297,1715848238989,-500.0,0.00010958,2]
[327143298,1715848239003,-504.58558666,0.00010958,2]
[327143299,1715848239013,-425.82959515,0.00010958,2]
[327143300,1715848239023,-500.0,0.00010958,2]
[327143301,1715848239033,-317.96545768,0.00010958,2]
[327143302,1715848239043,-246.34304509,0.00010958,2]
[327143303,1715848239052,-500.0,0.00010958,2]
[327143304,1715848239063,-214.13477505,0.00010958,2]
[327143305,1715848239072,-500.0,0.00010958,2]
[327143306,1715848239082,-500.0,0.00010958,2]
[327143307,1715848239093,-500.0,0.00010958,2]
[327143308,1715848239104,-500.0,0.00010958,2]
[327143309,1715848239113,-500.0,0.00010958,2]
[327143310,1715848239123,-500.0,0.00010958,2]
[327143311,1715848239133,-500.0,0.00010958,2]
[327143312,1715848239143,-500.0,0.00010958,2]
[327143313,1715848239153,-500.0,0.00010958,2]
[327143314,1715848239163,-335.13737943,0.00010958,2]
[327143315,1715848239173,-500.0,0.00010958,2]
[327143316,1715848239183,-500.0,0.00010958,2]
[327143317,1715848239193,-500.0,0.00010958,2]
[327143318,1715848239203,-160.42852835,0.00010958,2]
[327143319,1715848239213,-500.0,0.00010958,2]
[327143320,1715848239224,-500.0,0.00010958,2]
[327143321,1715848239235,-500.0,0.00010958,2]
[327143322,1715848239245,-500.0,0.00010958,2]
[327143323,1715848239259,-500.0,0.00010958,2]
[327143324,1715848239270,-500.0,0.00010958,2]
[327143325,1715848239280,-500.0,0.00010958,2]
[327143326,1715848239290,-500.0,0.00010958,2]
[327143328,1715848239300,-500.0,0.00010958,2]
[327143329,1715848239310,-500.0,0.00010958,2]
[327143330,1715848239320,-486.89794439,0.00010958,2]
[327143331,1715848239330,-500.0,0.00010958,2]
[327143332,1715848239341,-500.0,0.00010958,2]
[327143333,1715848239351,-500.0,0.00010958,2]
[327143334,1715848239361,-500.0,0.00010958,2]
[327143335,1715848239370,-500.0,0.00010958,2]
[327143336,1715848239380,-500.0,0.00010958,2]
[327143337,1715848239389,-500.0,0.00010958,2]
[327143338,1715848239399,-500.0,0.00010958,2]
[327143339,1715848239408,-500.0,0.00010958,2]
[327143340,1715848239418,-262.71748438,0.00010958,2]
[327143341,1715848239429,-500.0,0.00010958,2]
[327143342,1715848239439,-500.0,0.00010958,2]
[327143343,1715848239449,-500.0,0.00010958,2]
[327143344,1715848239459,-487.63514336,0.00010958,2]
[327143345,1715848239469,-500.0,0.00010958,2]
[327143346,1715848239478,-500.0,0.00010958,2]
[327143347,1715848239488,-500.0,0.00010958,2]
[327143348,1715848239500,-500.0,0.00010958,2]
[327143349,1715848239510,-500.0,0.00010958,2]
[327143350,1715848239520,-500.0,0.00010958,2]
[327143352,1715848239531,-500.0,0.00010958,2]
[327143357,1715848239542,-500.0,0.00010958,2]
[327143359,1715848239552,-500.0,0.00010958,2]
[327143362,1715848239562,-500.0,0.00010958,2]
[327143365,1715848239572,-205.89,0.00010958,2]
[327143367,1715848239582,-500.0,0.00010958,2]
[327143370,1715848239592,-500.0,0.00010958,2]
[327143372,1715848239602,-500.0,0.00010958,2]
[327143374,1715848239612,-500.0,0.00010958,2]
[327143376,1715848239624,-500.0,0.00010958,2]
[327143378,1715848239634,-500.0,0.00010958,2]
[327143380,1715848239644,-232.0577399,0.00010958,2]
[327143382,1715848239654,-500.0,0.00010958,2]
[327143384,1715848239664,-500.0,0.00010958,2]
[327143385,1715848239678,-500.0,0.00010958,2]
[327143386,1715848239689,-500.0,0.00010958,2]
[327143387,1715848239699,-500.0,0.00010958,2]
[327143388,1715848239709,-500.0,0.00010958,2]
[327143389,1715848239721,-500.0,0.00010958,2]
[327143390,1715848239731,-500.0,0.00010958,2]
[327143391,1715848239742,-500.0,0.00010958,2]
[327143392,1715848239754,-500.0,0.00010958,2]
[327143393,1715848239767,-500.0,0.00010958,2]
[327143394,1715848239777,-500.0,0.00010958,2]
[327143395,1715848239787,-500.0,0.00010958,2]
[327143396,1715848239798,-500.0,0.00010958,2]
[327143397,1715848239809,-500.0,0.00010958,2]
[327143398,1715848239819,-500.0,0.00010958,2]
[327143399,1715848239829,-500.0,0.00010958,2]
[327143400,1715848239839,-500.0,0.00010958,2]
[327143401,1715848239849,-593.86658566,0.00010958,2]
[327143402,1715848239860,-500.0,0.00010958,2]